Cogmind - Beta 12 @@@ ROGUE MODE // 2023.03.11 @ 15:49:10 Player: Palikka Result: Destroyed by P-80 Master with Gamma Rifle Performance ------------- Evolutions (7) 3500 Regions Visited (24) 4800 Robots Destroyed (221) 1105 Value Destroyed (9845) 9845 Prototype IDs (33) 660 Alien Tech Used (0) 0 Bonus (3954) 3954 TOTAL SCORE: 23864 Bonus ------- High Alert Combat Kills 259 Follower Combat Kills 343 Entered Garrisons 200 Entered DSFs 500 Aligned with FarCom 300 Met Imprinter 300 Met Warlord at Base 500 MAIN.C Attacked Warlord 500 Warlord Defense Kills 1308 Friendly Fire -256 Cogmind --------- Core Integrity 0/1300 Matter 228/300 Energy 107/150 System Corruption 8% Temperature Cool (0) Movement Flying (65) Location -3/Research Parts ------- > --- POWER (2) -------- Micro Antimatter Reactor > --- PROPULSION (6) --- Armored Medium Treads Impulse Thruster Array > --- UTILITY (9) ------ Enhanced Optical Array Advanced Signal Interpreter Advanced Targeting Computer Advanced Hacking Suite > --- WEAPON (4) ------- (None) > --- INVENTORY (5) ---- High-capacity Storage Unit Advanced Reaction Control System Nova Cannon Peak State ------------ > --- POWER ------------ (None) > --- PROPULSION ------- Armored Medium Treads Armored Medium Treads Advanced Medium Treads Advanced Medium Treads Biometal Medium Treads Q-thruster > --- UTILITY ---------- Enhanced Optical Array Advanced Signal Interpreter Advanced Targeting Computer Advanced Targeting Computer Advanced Targeting Computer Advanced Target Analyzer Graphene Brace Advanced Hacking Suite Improved Corruption Screen > --- WEAPON ----------- Falx > --- INVENTORY -------- Micro Antimatter Reactor Advanced Medium Treads High-capacity Storage Unit RU-N14's Throwing Claymores [Rating: 94] Favorites ----------- Power Micro Nuclear Core Engine Ion Engine Power Core Micro Nuclear Core Reactor Heavy Antimatter Reactor Propulsion Improved Treads Treads Improved Treads Leg Flexi-carbon Leg Wheel Compact Wheel Hover Unit Antigrav System Flight Unit Impulse Thruster Array Utility High-capacity Storage Unit Device Improved Cooling System Storage High-capacity Storage Unit Processor Advanced Targeting Computer Hackware Advanced Hacking Suite Protection Layered Light Armor Plating Weapon Gauss Rifle Energy Cannon YOLO Cannon Ballistic Gun Gauss Rifle Ballistic Cannon Heavy Assault Cannon Launcher Grenade Launcher Special Weapon RU-N14's Throwing Claymores Slashing Weapon Falx Piercing Weapon Plasma Lance Build | -11 -10 -10 -9 -9 -9 -8 -8 -7 -7 -6 -6 -6 -6 -5 -5 -5 -5 -5 -4 -4 -4 -4 -4 -3 ------- Run | Jun Mat Min Mat Min Exi Min Mat Fac Gar Fac Low Low Zio Pro Fac Upp Upp War Pro Fac Was Fac DSF Res Slots Evolved 14 | . . . 2 . . . 2 2 . 2 . . . . 2 . . . . 2 . . . 2 Power 1 | . . . . . . . . . . 1 . . . . . . . . . . . . . . Propulsion 4 | . . . 1 . . . . 1 . . . . . . . . . . . 2 . . . . Utility 7 | . . . 1 . . . 1 1 . 1 . . . . 2 . . . . . . . . 1 Weapon 2 | . . . . . . . 1 . . . . . . . . . . . . . . . . 1 Parts Attached 325 | 6 11 14 20 . 1 . 34 14 14 46 6 5 8 1 19 13 13 14 25 22 . . 10 29 Power 29 | 1 2 5 3 . . . 3 1 . 3 . 1 . . 3 . . 2 1 2 . . . 2 Engine 9 | 1 1 4 2 . . . 1 . . . . . . . . . . . . . . . . . Core 16 | . 1 1 1 . . . 2 1 . 3 . 1 . . 2 . . 1 1 2 . . . . Reactor 4 | . . . . . . . . . . . . . . . 1 . . 1 . . . . . 2 Propulsion 73 | 2 1 2 6 . . . 10 3 1 8 1 2 . . 1 . 2 3 9 6 . . 7 9 Treads 54 | 2 1 2 6 . . . 9 3 1 6 1 2 . . 1 . 2 3 4 2 . . 5 4 Leg 3 | . . . . . . . . . . 1 . . . . . . . . 1 . . . . 1 Wheel 8 | . . . . . . . . . . 1 . . . . . . . . 4 3 . . . . Hover 3 | . . . . . . . . . . . . . . . . . . . . 1 . . 2 . Flight 5 | . . . . . . . 1 . . . . . . . . . . . . . . . . 4 Utility 82 | 1 3 1 6 . 1 . 8 1 2 16 1 . 4 . 5 2 4 3 8 9 . . 1 6 Device 22 | . 1 1 1 . . . 2 1 . 5 . . 1 . 3 . 1 . 2 2 . . 1 1 Storage 9 | 1 2 . 2 . 1 . 1 . . . . . . . . 1 1 . . . . . . . Processor 19 | . . . . . . . 1 . . 4 . . . . 1 . . . 2 6 . . . 5 Hackware 2 | . . . . . . . . . . . . . . . . . . . 1 1 . . . . Protection 30 | . . . 3 . . . 4 . 2 7 1 . 3 . 1 1 2 3 3 . . . . . Artifact . | . . . . . . . . . . . . . . . . . . . . . . . . . Weapon 141 | 2 5 6 5 . . . 13 9 11 19 4 2 4 1 10 11 7 6 7 5 . . 2 12 Energy Gun . | . . . . . . . . . . . . . . . . . . . . . . . . . Energy Cannon 3 | . . . . . . . . . . . . . . . . 1 . . 2 . . . . . Ballistic Gun 74 | 2 3 3 5 . . . 11 5 5 13 1 1 2 1 7 4 5 3 3 . . . . . Ballistic Cannon 1 | . . . . . . . . 1 . . . . . . . . . . . . . . . . Launcher 17 | . 2 3 . . . . 2 2 4 2 2 . . . . . . . . . . . . . Special Weapon 11 | . . . . . . . . . . . . . 2 . 2 2 1 2 1 . . . . 1 Impact Weapon . | . . . . . . . . . . . . . . . . . . . . . . . . . Slashing Weapon 33 | . . . . . . . . 1 2 4 1 1 . . . 4 1 1 1 4 . . 2 11 Piercing Weapon 2 | . . . . . . . . . . . . . . . 1 . . . . 1 . . . . Special Melee Weapon . | . . . . . . . . . . . . . . . . . . . . . . . . . Unidentified Prototypes 6 | . . . 1 . . . . . . 1 . . 2 . 2 . . . . . . . . . Parts Lost 94 | . 1 8 2 . . . 6 . 2 8 . 3 . . 2 . 6 4 22 8 . . 4 18 Power 6 | . . 2 . . . . . . . 1 . 1 . . . . . . 1 . . . . 1 Propulsion 42 | . 1 2 1 . . . 1 . 1 4 . 1 . . 1 . 1 2 11 5 . . 1 10 Utility 28 | . . 1 1 . . . 3 . 1 1 . . . . 1 . 3 2 6 2 . . 2 5 Weapon 18 | . . 3 . . . . 2 . . 2 . 1 . . . . 2 . 4 1 . . 1 2 Highest Loss Streak 8 | . 1 3 1 . . . 2 . 1 6 . 1 . . 2 . 3 4 8 2 . . 2 8 To Critical Strikes 1 | . . . . . . . . . 1 . . . . . . . . . . . . . . . Average Slot Usage (%) 92 | . 95 94 99 100 100 100 98 91 97 97 100 96 100 100 96 91 93 98 65 70 52 . 58 55 Engine 1 | . 10 12 6 . . . 1 . . . . . . . . . . . . . . . . . Core 7 | . 3 . 4 11 11 11 7 7 7 11 13 10 13 13 10 5 5 5 4 . . . . . Reactor 1 | . . . . . . . . . . . . . . . . 5 5 5 3 . . . . . Treads 24 | . 27 26 32 33 33 33 26 30 29 23 26 25 26 26 22 23 22 22 6 5 5 . 8 13 Device 7 | . 10 11 11 11 11 11 7 6 7 8 6 6 6 6 13 5 5 5 . 2 5 . 4 1 Storage 8 | . 14 14 11 11 11 11 9 7 7 6 6 6 6 6 5 8 12 17 13 . . . . . Processor 10 | . . . . . . . 4 7 7 13 13 13 13 13 13 17 15 11 11 31 31 . 28 27 Protection 8 | . . . 11 11 11 11 13 7 12 10 13 13 12 13 8 5 4 9 2 . . . . . Ballistic Gun 17 | . 27 20 20 22 22 22 26 22 20 18 14 13 13 13 16 13 15 13 2 . . . . . Slashing Weapon 1 | . . . . . . . . . 1 1 5 3 5 . . 2 1 2 3 . . . 2 1 Naked Turns . | . . . . . . . . . . . . . . . . . . . . . . . . . Heaviest Build 111 | 14 31 29 39 38 58 58 73 79 77 79 78 75 78 79 107 111 110 104 94 12 3 3 5 17 Greatest Support 116 | 40 40 40 69 63 63 63 65 88 89 113 113 111 111 111 111 108 116 116 108 32 3 3 30 40 Greatest Overweight (x) 6 | 2 . 1 . . . . 1 . 1 5 . . . . 1 1 1 1 6 . . . 1 4 Average Overweight (x) . | . . . . . . . . . . . . . . . . . . . 1 . . . . . Largest Inventory Capacity 20 | 8 15 15 15 15 20 20 20 20 20 20 20 20 20 20 20 20 20 20 20 5 5 5 5 5 Average Capacity 17 | 7 12 15 15 15 15 20 20 20 20 20 20 20 20 20 20 20 20 20 18 5 5 5 5 5 Most Carried 20 | 3 15 15 15 15 15 16 20 20 20 20 20 20 20 20 20 20 20 20 20 5 5 5 5 5 Average Carried 17 | 1 10 13 14 15 14 15 19 19 18 19 19 19 19 20 19 19 18 18 13 4 5 5 4 4 Final Capacity 20 | 8 15 15 15 15 20 20 20 20 20 20 20 20 20 20 20 20 20 20 5 5 5 5 5 5 Final Carried 20 | 3 15 14 15 15 15 16 20 20 19 20 20 20 20 20 18 20 18 20 5 5 5 5 5 3 Class Distribution -------------------- 32% | Mutant 14% | Scavenger-Mutant 11% | Skirmisher 11% | Tank 8% | Scavenger-Tank 6% | Gunner 5% | Scavenger-Skirmisher 5% | Scavenger-Gunner Dominant Class ---------------- Mutant | -10/Materials Scavenger-Mutant | -10/Mines Mutant | -9/Materials Scavenger-Mutant | -9/Mines Scavenger-Mutant | -9/Exiles Scavenger-Mutant | -8/Mines Scavenger-Tank | -8/Materials Skirmisher | -7/Factory Tank | -7/Garrison Scavenger-Tank | -6/Factory Mutant | -6/Lower Caves Mutant | -6/Lower Caves Mutant | -6/Zion Tank | -5/Proximity Caves Tank | -5/Factory Mutant | -5/Upper Caves Scavenger-Gunner | -5/Upper Caves Scavenger-Mutant | -5/Warlord Mutant | -4/Proximity Caves Scavenger-Scout | -4/Factory Mutant | -4/Waste Mutant | -4/Factory Mutant | -4/DSF Mutant | -3/Research Resources | -11 -10 -10 -9 -9 -9 -8 -8 -7 -7 -6 -6 -6 -6 -5 -5 -5 -5 -5 -4 -4 -4 -4 -4 -3 ----------- Run | Jun Mat Min Mat Min Exi Min Mat Fac Gar Fac Low Low Zio Pro Fac Upp Upp War Pro Fac Was Fac DSF Res Matter Collected 7741 | 225 397 537 434 18 . 47 654 668 624 1277 316 270 70 28 373 374 323 325 348 120 . . 111 202 Remotely . | . . . . . . . . . . . . . . . . . . . . . . . . . Salvage Created 9128 | . 393 202 914 35 . 53 728 710 477 1297 517 426 . 105 569 357 584 437 663 409 . . . 252 Parts 449 | . 35 11 65 4 . 1 47 39 24 76 19 17 . 3 20 14 13 15 20 19 . . . 7 Haulers Intercepted 9 | . 1 . 3 . . . 2 1 . . . . . . 1 . . . . 1 . . . . Recyclers Shooed 6 | . 2 1 1 . . . 1 . . 1 . . . . . . . . . . . . . . Parts Field Recycled . | . . . . . . . . . . . . . . . . . . . . . . . . . Retrieved Matter . | . . . . . . . . . . . . . . . . . . . . . . . . . Parts Self-Destructed 69 | . . . . . . . . . . . 12 12 6 2 . 14 11 . 12 . . . . . Prevented . | . . . . . . . . . . . . . . . . . . . . . . . . . Kills | -11 -10 -10 -9 -9 -9 -8 -8 -7 -7 -6 -6 -6 -6 -5 -5 -5 -5 -5 -4 -4 -4 -4 -4 -3 ------- Run | Jun Mat Min Mat Min Exi Min Mat Fac Gar Fac Low Low Zio Pro Fac Upp Upp War Pro Fac Was Fac DSF Res Combat Hostiles Destroyed 200 | . 11 19 20 3 . 1 15 10 17 23 6 12 . 2 12 8 11 12 15 2 . . . 1 Melee 3 | . . . . . . . . . 1 . . . . . . . . . . 2 . . . . Guns 113 | . 8 8 20 3 . 1 11 9 5 15 5 4 . . 3 3 9 4 5 . . . . . Cannons 10 | . . . . . . . . . . . . . . . 3 . 1 1 5 . . . . . AOE 72 | . 3 11 . . . . 4 1 11 8 1 8 . 2 6 4 1 7 4 . . . . 1 Classes Destroyed 20 | . 4 2 2 . . 1 2 2 . 2 1 . . 1 1 2 . . . . . . . . Worker 5 | . . . . . . . . 3 . . . . . . 2 . . . . . . . . . Tunneler 1 | . . . . . . . . . . 1 . . . . . . . . . . . . . . Hauler 9 | . 1 . 3 . . . 2 1 . . . . . . 1 . . . . 1 . . . . Recycler 9 | . . . . . . . 1 3 . 1 . . . . 1 . . . . 1 . . . 2 Minesweeper 1 | . . . . . . . . . . . . . . . . 1 . . . . . . . . Mechanic 1 | . . . . . . . . . . . . . . . 1 . . . . . . . . . Watcher 6 | . 1 . . . . . 1 1 . 2 . . . . . . . . . 1 . . . . Swarmer 43 | . 3 6 5 3 . . 3 6 7 . 1 4 . . . 1 1 2 1 . . . . . Grunt 63 | . 8 . 8 . . . 4 . 8 8 4 6 . . . 2 7 5 3 . . . . . Brawler 6 | . . . 1 . . . . . . 1 . 2 . . . . . . 2 . . . . . Duelist 6 | . . . . . . . . . . . . . . . . 3 1 . 2 . . . . . Protector 5 | . . . . . . . . . . 2 . . . . 2 . . 1 . . . . . . Sentry 21 | . . . 6 . . . 5 1 . 2 1 . . 1 . 2 1 . 2 . . . . . Demolisher 1 | . . 1 . . . . . . . . . . . . . . . . . . . . . . Specialist 5 | . . . . . . . 2 . . . . . . . 3 . . . . . . . . . Hunter 19 | . . . . . . 1 1 . 3 4 . . . . 5 . . 1 4 . . . . . Programmer 17 | . . . . . . . . 3 . 6 . . . . 2 . . 3 . 2 . . . 1 Behemoth 3 | . . . . . . . . . . . . . . 1 . . 1 . 1 . . . . . Decomposer 2 | . . . . . . . . . . . . . . . . . . . 2 . . . . . Packrat 1 | . . . . . . . . . . . . 1 . . . . . . . . . . . . Samaritan 5 | . . . . . . . . . . . 4 1 . . . . . . . . . . . . Assembled 12 | . . 12 . . . . . . . . . . . . . . . . . . . . . . Best Kill Streak 14 | . 3 6 5 3 . 1 3 3 8 7 3 4 . 1 14 6 4 8 5 2 . . . 2 Combat Bots Only 10 | . 3 6 5 3 . 1 3 3 8 6 3 4 . 1 10 6 4 8 5 1 . . . 1 Max Kills in Single Turn 7 | . 2 3 2 2 . 1 2 2 2 4 1 2 . 1 7 2 2 5 2 1 . . . 1 Gunslinging 1 | . . 1 1 1 . . . 1 . . . . . . . . . . . . . . . . Exploded 5 | . 2 3 . . . . 2 1 2 4 1 2 . 1 4 2 1 5 2 . . . . 1 Melee 1 | . . . . . . . . . 1 . . . . . . . . . . 1 . . . . Uniques/NPCs Destroyed . | . . . . . . . . . . . . . . . . . . . . . . . . . Combat | -11 -10 -10 -9 -9 -9 -8 -8 -7 -7 -6 -6 -6 -6 -5 -5 -5 -5 -5 -4 -4 -4 -4 -4 -3 -------- Run | Jun Mat Min Mat Min Exi Min Mat Fac Gar Fac Low Low Zio Pro Fac Upp Upp War Pro Fac Was Fac DSF Res Damage Taken 20370 | . 459 995 1048 41 . . 769 739 616 1829 577 348 . 247 947 562 894 1496 2844 951 . . 873 4135 Core 3123 | . 55 170 106 . . . 19 57 51 190 20 24 . . 48 . 16 194 398 216 . . 254 1305 Absorbed by Shields 28 | . . . . . . . . . 28 . . . . . . . . . . . . . . . Redirected to Shielding 6 | . . . 6 . . . . . . . . . . . . . . . . . . . . . Regen/Repaired (Parts) 1125 | . . . . . . . . . . 138 . . . . 506 . . 481 . . . . . . Core Remaining (%) 66 | 100 . 10 . . . 73 96 . 84 . . . . 72 . . . . 34 . . . 59 . Volleys Fired 513 | . 41 38 79 3 . 2 51 34 33 59 13 21 . 4 22 19 23 25 42 . . . . 4 Largest 3 | . 2 2 2 2 . 2 3 3 3 3 3 3 . 3 3 3 3 3 3 . . . . 1 Hottest 100 | . 50 50 46 46 . 46 79 84 92 96 96 96 . 58 99 99 99 99 100 . . . . . Shots Fired 1160 | . 80 67 158 6 1 5 135 98 72 162 35 34 . 6 54 51 57 55 80 . . . . 4 Gun 1051 | . 77 57 158 6 1 5 128 95 60 155 33 21 . 2 48 48 50 50 57 . . . . . Cannon 13 | . . . . . . . . 1 . . . . . . . . . . 12 . . . . . Launcher 56 | . 3 10 . . . . 7 2 12 7 2 13 . . . . . . . . . . . . Special 40 | . . . . . . . . . . . . . . 4 6 3 7 5 11 . . . . 4 Kinetic 1052 | . 77 57 158 6 1 5 128 96 60 155 33 21 . 2 48 48 50 50 57 . . . . . Thermal 12 | . . . . . . . . . . . . . . . . . . . 12 . . . . . Explosive 96 | . 3 10 . . . . 7 2 12 7 2 13 . 4 6 3 7 5 11 . . . . 4 Electromagnetic . | . . . . . . . . . . . . . . . . . . . . . . . . . Robot Hit Streak 29 | . 14 6 14 2 . 5 19 7 4 21 4 14 . 12 17 29 26 14 24 . . . . 4 Robot Miss Streak 5 | . 3 3 5 2 . 1 3 3 4 4 2 2 . . 1 1 2 2 5 . . . . . Penetration Max 1 | . . . . . . . 1 1 1 1 . . . . 1 . 1 1 . . . . . . Secondary Targets 17 | . 1 2 3 2 . . . 1 . 3 1 . . . . 1 1 1 1 . . . . . Max Gunslinging Chain 1 | . 1 1 1 1 . . . 1 . 1 1 . . . . 1 1 1 1 . . . . . Shots Hit Robots 791 | . 53 38 103 3 . 3 95 56 34 112 27 24 . 6 43 43 45 40 49 9 . . 2 6 Core Hits 502 | . 22 38 46 3 . 3 43 28 36 67 15 40 . 5 37 25 22 23 37 5 . . . 7 Critical Kills 18 | . . 1 . . . . 1 . . 3 4 2 . . 1 2 3 . 1 . . . . . Critical Parts Destroyed 30 | . . 1 2 . . . . 1 . 2 2 1 . . 10 7 2 1 1 . . . . . Critical Strikes 66 | . . 2 2 . . . 1 1 . 5 6 3 . 1 13 11 10 2 7 1 . . 1 . Meltdown 1 | . . . . . . . . . . . . . . . . . . . 1 . . . . . Destroy 50 | . . 2 2 . . . 1 1 . 5 6 3 . . 11 10 6 2 1 . . . . . Sever 14 | . . . . . . . . . . . . . . 1 2 1 4 . 5 . . . 1 . Impale 1 | . . . . . . . . . . . . . . . . . . . . 1 . . . . Melee Attacks 126 | . . . . . . . . 4 3 10 6 2 . . . 19 6 2 11 33 . . 2 28 Impact . | . . . . . . . . . . . . . . . . . . . . . . . . . Slashing 102 | . . . . . . . . 4 3 10 6 2 . . . 19 6 2 11 9 . . 2 28 Piercing 24 | . . . . . . . . . . . . . . . . . . . . 24 . . . . Sneak Attacks 16 | . . . . . . . . . . 1 6 2 . . . . . . 2 2 . . . 3 Combat Hostiles . | . . . . . . . . . . . . . . . . . . . . . . . . . Follow-up Attacks . | . . . . . . . . . . . . . . . . . . . . . . . . . Damage Inflicted 29441 | . 890 992 1046 42 . 34 1875 1494 1851 3511 863 1593 . 561 3302 1450 1723 2629 3923 535 . . 93 1034 Guns 11443 | . 706 409 1046 42 . 34 1329 1421 473 2009 238 196 . 41 629 490 606 1156 618 . . . . . Cannons 865 | . . . . . . . . . . . . . . . . . . . 865 . . . . . Explosions 14039 | . 184 583 . . . . 546 70 1331 1417 151 1225 . 359 2442 867 890 1353 1981 . . . . 640 Melee 1933 | . . . . . . . . . 47 85 474 172 . . . . . . 170 535 . . 93 357 Ramming 10 | . . . . . . . . 3 . . . . . . . . . . . . . . . 7 Kinetic 11443 | . 706 409 1046 42 . 34 1329 1421 473 2009 238 196 . 41 629 490 606 1156 618 . . . . . Thermal 1215 | . 56 . . . . . . . . . . . . . . . . . 1159 . . . . . Explosive 13689 | . 128 583 . . . . 546 70 1331 1417 151 1225 . 359 2442 867 890 1353 1687 . . . . 640 Electromagnetic . | . . . . . . . . . . . . . . . . . . . . . . . . . Impact . | . . . . . . . . . . . . . . . . . . . . . . . . . Slashing 2549 | . . . . . . . . . 47 85 474 172 . 161 231 93 227 120 459 . . . 93 387 Piercing 535 | . . . . . . . . . . . . . . . . . . . . 535 . . . . Highest Corruption 8 | . . 3 2 2 2 2 . 4 4 2 . . . . 1 . . . . . . . . 8 Average Corruption 2 | . . 3 1 2 2 2 . 1 4 1 . . . . 1 . . . . . . . . 4 Corruption Purged 5 | . . . . . . . . . . 4 . . . . 1 . . . . . . . . . Corruption Blocked 13 | . . . . . . . . . . . . . . . . . . . . 3 . . 7 3 Effects 103 | . . 12 11 6 4 3 . 16 35 8 . . . . . . . . . . . . . 8 Message Errors 27 | . . 4 3 1 . . . 6 10 3 . . . . . . . . . . . . . . Matter Fused 24 | . . 2 1 1 2 1 . 3 13 1 . . . . . . . . . . . . . . Heat Flow Errors 16 | . . . 2 3 1 . . 3 3 2 . . . . . . . . . . . . . 2 Energy Discharges 17 | . . 4 3 . . . . 3 3 1 . . . . . . . . . . . . . 3 Parts Rejected 1 | . . . . . . . . . . . . . . . . . . . . . . . . 1 Parts Fused 1 | . . . . . . . . . 1 . . . . . . . . . . . . . . . Data Loss (minor) 9 | . . 1 2 . . 1 . 1 2 1 . . . . . . . . . . . . . 1 Data Loss (major) 5 | . . 1 . 1 . . . . 3 . . . . . . . . . . . . . . . Misfires 2 | . . . . . 1 1 . . . . . . . . . . . . . . . . . . Alerts 1 | . . . . . . . . . . . . . . . . . . . . . . . . 1 Overload Shots . | . . . . . . . . . . . . . . . . . . . . . . . . . Overflow Damage 1163 | . 28 34 . . . . 5 . 72 . 176 136 . . 47 27 59 81 257 79 . . 6 156 Projectiles 96 | . . . . . . . . . . . . . . . . . . 38 58 . . . . . Explosions 418 | . 28 34 . . . . 5 . 72 . . 54 . . 47 27 59 43 49 . . . . . Melee 649 | . . . . . . . . . . . 176 82 . . . . . . 150 79 . . 6 156 Knockbacks . | . . . . . . . . . . . . . . . . . . . . . . . . . Impact . | . . . . . . . . . . . . . . . . . . . . . . . . . Kinetic . | . . . . . . . . . . . . . . . . . . . . . . . . . Secondary . | . . . . . . . . . . . . . . . . . . . . . . . . . Self-Inflicted Damage 297 | . 33 51 . . . . . . 64 15 14 48 . . . . . . 69 . . . . 3 Shots 12 | . 1 2 . . . . . . 3 2 1 2 . . . . . . 1 . . . . . Rammed 3 | . . . . . . . . 1 . . . . . . . . . . . . . . . 2 Targets Rammed 3 | . . . . . . . . 1 . . . . . . . . . . . . . . . 2 Kicked . | . . . . . . . . . . . . . . . . . . . . . . . . . Crushed . | . . . . . . . . . . . . . . . . . . . . . . . . . Highest Temperature 340 | . 2 6 239 211 251 . 30 166 214 219 8 . . . . 6 11 160 340 . . . . 217 Average Temperature 82 | . 1 3 102 96 143 . 11 73 87 58 7 . . . . 2 11 86 117 . . . . 115 Received Heat Transfer 2635 | . 201 160 393 . . . 288 51 150 190 159 99 . 33 63 108 177 184 208 12 . . . 159 Effects 7 | . . . 3 . . . . . . . . . . . . . . . 4 . . . . . Interference 6 | . . . 3 . . . . . . . . . . . . . . . 3 . . . . . Matter Decay 1 | . . . . . . . . . . . . . . . . . . . 1 . . . . . Siege Activations . | . . . . . . . . . . . . . . . . . . . . . . . . . Robots Corrupted . | . . . . . . . . . . . . . . . . . . . . . . . . . Combat Hostiles . | . . . . . . . . . . . . . . . . . . . . . . . . . Parts Fried 1 | . . . . . . . . . . . . . . . . . . 1 . . . . . . Impact Corruptions . | . . . . . . . . . . . . . . . . . . . . . . . . . Robots Melted 1 | . . . . . . . . . . . . . . . . . . . 1 . . . . . Combat Hostiles 1 | . . . . . . . . . . . . . . . . . . . 1 . . . . . Parts Melted 7 | . . . . . . . . . . . . . . . 3 2 1 1 . . . . . . Heat Transferred 930 | . 50 . . . . . . . . . . . . . . . . . 880 . . . . . Parts Sabotaged . | . . . . . . . . . . . . . . . . . . . . . . . . . Parts Stolen . | . . . . . . . . . . . . . . . . . . . . . . . . . Parts Stripped . | . . . . . . . . . . . . . . . . . . . . . . . . . Power Chain Reactions . | . . . . . . . . . . . . . . . . . . . . . . . . . Missiles Intercepted . | . . . . . . . . . . . . . . . . . . . . . . . . . Alert | -11 -10 -10 -9 -9 -9 -8 -8 -7 -7 -6 -6 -6 -6 -5 -5 -5 -5 -5 -4 -4 -4 -4 -4 -3 ------- Run | Jun Mat Min Mat Min Exi Min Mat Fac Gar Fac Low Low Zio Pro Fac Upp Upp War Pro Fac Was Fac DSF Res Peak Influence 853 | . 215 197 303 107 . 30 171 244 853 527 . . . . 368 . . . . 119 22 15 125 454 Initial 447 | . . 7 18 37 . . 11 18 99 447 . . . . 31 . . . . . 7 15 10 69 Average 175 | . 65 47 109 83 . 29 52 97 586 364 . . . . 60 . . . . 38 12 15 51 199 Maximum Alert Level 3 | . 1 . 1 . . . . 1 3 2 . . . . 1 . . . . . . . . 2 Low Security (%) 67 | 100 89 100 79 100 . 100 100 93 10 . . . . . 87 . . . . 100 100 100 100 55 Level 1 14 | . 10 . 20 . . . . 6 7 47 . . . . 12 . . . . . . . . 35 Level 2 14 | . . . . . . . . . 54 52 . . . . . . . . . . . . . 9 Level 3 2 | . . . . . . . . . 27 . . . . . . . . . . . . . . . Level 4 . | . . . . . . . . . . . . . . . . . . . . . . . . . Level 5 . | . . . . . . . . . . . . . . . . . . . . . . . . . High Security . | . . . . . . . . . . . . . . . . . . . . . . . . . Max Security . | . . . . . . . . . . . . . . . . . . . . . . . . . Squads Dispatched 41 | . 2 . 4 . . . 3 8 . 10 . . . . 2 . . . 1 5 . . 2 4 Investigation 6 | . . . 2 . . . 1 1 . 1 . . . . . . . . . 1 . . . . Extermination 15 | . . . . . . . . 5 . 5 . . . . 1 . . . . 2 . . . 2 Reinforcement 16 | . 2 . 2 . . . 2 2 . 2 . . . . 1 . . . . 2 . . 2 1 Assault 4 | . . . . . . . . . . 2 . . . . . . . . 1 . . . . 1 Garrison . | . . . . . . . . . . . . . . . . . . . . . . . . . Intercept . | . . . . . . . . . . . . . . . . . . . . . . . . . Searches Triggered . | . . . . . . . . . . . . . . . . . . . . . . . . . Construction Impeded 2 | . . . . . . . . 1 . 1 . . . . . . . . . . . . . . Haulers Reinforced 1 | . . . . . . . . . . 1 . . . . . . . . . . . . . . Active Scanning Responses . | . . . . . . . . . . . . . . . . . . . . . . . . . Cargo Convoy Interrupts 1 | . . . . . . . . . . . . . . . 1 . . . . . . . . . Stealth | -11 -10 -10 -9 -9 -9 -8 -8 -7 -7 -6 -6 -6 -6 -5 -5 -5 -5 -5 -4 -4 -4 -4 -4 -3 --------- Run | Jun Mat Min Mat Min Exi Min Mat Fac Gar Fac Low Low Zio Pro Fac Upp Upp War Pro Fac Was Fac DSF Res Distress Signals 14 | . 2 . . . . . 3 1 . 2 . . . . 1 . . 1 . 1 . . . 3 Communications Jammed 117 | . . . . . . . . . . . . . . . 117 . . . . . . . . . Distress Signals 116 | . . . . . . . . . . . . . . . 116 . . . . . . . . . Times Spotted 386 | . 24 26 35 3 . 1 25 21 21 32 6 11 1 3 26 7 11 44 14 11 6 . 14 44 Peak Tracking Total 14 | . 5 7 8 3 . 1 5 5 5 5 3 4 1 2 11 5 4 14 7 5 6 . 7 14 Tactical Retreats 30 | . 1 . . . . . 3 1 2 . . . . 1 . . . 1 2 2 . . 5 12 Traps | -11 -10 -10 -9 -9 -9 -8 -8 -7 -7 -6 -6 -6 -6 -5 -5 -5 -5 -5 -4 -4 -4 -4 -4 -3 ------- Run | Jun Mat Min Mat Min Exi Min Mat Fac Gar Fac Low Low Zio Pro Fac Upp Upp War Pro Fac Was Fac DSF Res Traps Triggered 15 | . 1 . 2 . . . 2 3 1 1 . . . . 1 . . . . 2 . . . 2 Indirectly . | . . . . . . . . . . . . . . . . . . . . . . . . . Trap Hack Attempts . | . . . . . . . . . . . . . . . . . . . . . . . . . Triggered . | . . . . . . . . . . . . . . . . . . . . . . . . . Disarmed . | . . . . . . . . . . . . . . . . . . . . . . . . . Reprogrammed . | . . . . . . . . . . . . . . . . . . . . . . . . . Reused 5 | . . . . . . . . . . . . . . . . . 1 . . . . . 4 . Traps Extracted . | . . . . . . . . . . . . . . . . . . . . . . . . . Installed 8 | . . . . . . . . . . . . . . . . . 1 . . . . . 7 . Triggered 15 | . . . . . . . . . . . . . . . . . 1 8 . . . . 5 1 Most Traps Carried 1 | . . . . . . . . . . . . . . . . 1 1 . . . . . 1 . Exploded 1 | . . . . . 1 . . . . . . . . . . . . . . . . . . . Machines | -11 -10 -10 -9 -9 -9 -8 -8 -7 -7 -6 -6 -6 -6 -5 -5 -5 -5 -5 -4 -4 -4 -4 -4 -3 ---------- Run | Jun Mat Min Mat Min Exi Min Mat Fac Gar Fac Low Low Zio Pro Fac Upp Upp War Pro Fac Was Fac DSF Res Machines Disabled 20 | . 1 3 . . . . 1 2 3 4 . . . . 4 1 . . 1 . . . . . Max in Single Turn 4 | . 1 2 . . . . 1 1 1 1 . . . . 4 1 . . 1 . . . . . Garrison Access 2 | . . . . . . . . . . 1 . . . . . . . . . . . . . 1 Garrison Relay 3 | . . . . . . . . . 3 . . . . . . . . . . . . . . . Machines Repaired . | . . . . . . . . . . . . . . . . . . . . . . . . . Machines Sabotaged . | . . . . . . . . . . . . . . . . . . . . . . . . . Overloaded Fab Kills . | . . . . . . . . . . . . . . . . . . . . . . . . . Hacking | -11 -10 -10 -9 -9 -9 -8 -8 -7 -7 -6 -6 -6 -6 -5 -5 -5 -5 -5 -4 -4 -4 -4 -4 -3 --------- Run | Jun Mat Min Mat Min Exi Min Mat Fac Gar Fac Low Low Zio Pro Fac Upp Upp War Pro Fac Was Fac DSF Res Machines Accessed 61 | . 6 . 9 . 3 . 7 11 3 8 . . 1 1 4 . . . . 6 . 1 . 1 Terminals 47 | . 6 . 8 . . . 7 8 3 5 . . . 1 3 . . . . 4 . 1 . 1 Fabricators 4 | . . . . . . . . 2 . . . . . . . . . . . 2 . . . . Repair Stations 1 | . . . . . . . . . . 1 . . . . . . . . . . . . . . Recycling Units . | . . . . . . . . . . . . . . . . . . . . . . . . . Scanalyzers 1 | . . . 1 . . . . . . . . . . . . . . . . . . . . . Garrison Access 4 | . . . . . . . . 1 . 2 . . . . 1 . . . . . . . . . Total Hacks 153 | . 18 . 30 . 15 . 25 17 5 19 . . 1 1 6 . . . . 11 . 4 . 1 Successful 88 | . 9 . 17 . 15 . 15 7 . 11 . . 1 1 2 . . . . 8 . 1 . 1 Failed 65 | . 9 . 13 . . . 10 10 5 8 . . . . 4 . . . . 3 . 3 . . Catastrophic 11 | . 1 . 2 . . . 1 3 1 1 . . . . 2 . . . . . . . . . Database Lockouts . | . . . . . . . . . . . . . . . . . . . . . . . . . Manual 54 | . 11 . 13 . 1 . 12 3 1 7 . . . . 2 . . . . 4 . . . . Terminals 120 | . 18 . 28 . . . 25 12 5 12 . . . 1 5 . . . . 9 . 4 . 1 Fabricators 6 | . . . . . . . . 4 . . . . . . . . . . . 2 . . . . Repair Stations 4 | . . . . . . . . . . 4 . . . . . . . . . . . . . . Recycling Units . | . . . . . . . . . . . . . . . . . . . . . . . . . Scanalyzers 2 | . . . 2 . . . . . . . . . . . . . . . . . . . . . Garrison Access 5 | . . . . . . . . 1 . 3 . . . . 1 . . . . . . . . . Terminal Hacks 58 | . 7 . 11 . 15 . 9 2 . 4 . . 1 1 1 . . . . 5 . 1 . 1 Record 15 | . . . . . 14 . . . . . . . . 1 . . . . . . . . . . Part Schematic 2 | . . . . . . . . . . . . . 1 . . . . . . 1 . . . . Robot Analysis 2 | . . . 2 . . . . . . . . . . . . . . . . . . . . . Prototype ID Bank 2 | . . . 1 . . . 1 . . . . . . . . . . . . . . . . . Open DSF 8 | . . . . . . . . 1 . 2 . . . . 1 . . . . 2 . 1 . 1 Branch Access Points 3 | . . . 1 . . . 1 1 . . . . . . . . . . . . . . . . Alert Level 4 | . 2 . 1 . . . 1 . . . . . . . . . . . . . . . . . Unreport Threat 10 | . 2 . 3 . . . 2 . . 1 . . . . . . . . . 2 . . . . Locate Traps 8 | . 3 . 1 . . . 3 . . 1 . . . . . . . . . . . . . . Hauler Manifests 1 | . . . 1 . . . . . . . . . . . . . . . . . . . . . Zone Layout 2 | . . . 1 . . . 1 . . . . . . . . . . . . . . . . . EX-Prototype ID Bank 1 | . . . . . 1 . . . . . . . . . . . . . . . . . . . Fabricator Hacks 4 | . . . . . . . . 2 . . . . . . . . . . . 2 . . . . Build 4 | . . . . . . . . 2 . . . . . . . . . . . 2 . . . . Repair Station Hacks 2 | . . . . . . . . . . 2 . . . . . . . . . . . . . . Scan Component 1 | . . . . . . . . . . 1 . . . . . . . . . . . . . . Repair 1 | . . . . . . . . . . 1 . . . . . . . . . . . . . . Recycling Unit Hacks . | . . . . . . . . . . . . . . . . . . . . . . . . . Scanalyzer 1 | . . . 1 . . . . . . . . . . . . . . . . . . . . . Insert Component 1 | . . . 1 . . . . . . . . . . . . . . . . . . . . . Garrison Access Hacks 2 | . . . . . . . . 1 . 1 . . . . . . . . . . . . . . Unlock Access 1 | . . . . . . . . 1 . . . . . . . . . . . . . . . . Seal Access 1 | . . . . . . . . . . 1 . . . . . . . . . . . . . . Unauthorized Hacks 21 | . 2 . 5 . . . 6 2 . 4 . . . . 1 . . . . 1 . . . . Terminals 21 | . 2 . 5 . . . 6 2 . 4 . . . . 1 . . . . 1 . . . . Track 9 | . 1 . 3 . . . 4 . . 1 . . . . . . . . . . . . . . Assimilate 1 | . . . . . . . . 1 . . . . . . . . . . . . . . . . Botnet 11 | . 1 . 2 . . . 2 1 . 3 . . . . 1 . . . . 1 . . . . Fabricators . | . . . . . . . . . . . . . . . . . . . . . . . . . Repair Stations . | . . . . . . . . . . . . . . . . . . . . . . . . . Recycling Units . | . . . . . . . . . . . . . . . . . . . . . . . . . Scanalyzers . | . . . . . . . . . . . . . . . . . . . . . . . . . Garrison Access . | . . . . . . . . . . . . . . . . . . . . . . . . . Data Cores Recovered . | . . . . . . . . . . . . . . . . . . . . . . . . . Used . | . . . . . . . . . . . . . . . . . . . . . . . . . Hacking Detections 42 | . 5 . 8 . . . 5 8 3 5 . . . . 3 . . . . 5 . . . . Full Trace Events 2 | . . . 2 . . . . . . . . . . . . . . . . . . . . . Feedback Events . | . . . . . . . . . . . . . . . . . . . . . . . . . Feedback Blocked . | . . . . . . . . . . . . . . . . . . . . . . . . . Robot Schematics Acquired . | . . . . . . . . . . . . . . . . . . . . . . . . . Robots Built 4 | . . . . . . . . 3 . . . . . . . . . . . 1 . . . . Authchips . | . . . . . . . . . . . . . . . . . . . . . . . . . Time 366 | . . . . . . . . 197 . . . . . . . . . . . 169 . . . . Total Robot Build Rating 13 | . . . . . . . . 7 . . . . . . . . . . . 6 . . . . Part Schematics Acquired 2 | . . . . . . . . . . . . . 1 . . . . . . 1 . . . . Parts Built 2 | . . . . . . . . . . . . . . . . . . . . 2 . . . . Authchips . | . . . . . . . . . . . . . . . . . . . . . . . . . Time 69 | . . . . . . . . . . . . . . . . . . . . 69 . . . . Total Part Build Rating 18 | . . . . . . . . . . . . . . . . . . . . 18 . . . . Parts Repaired 1 | . . . . . . . . . . 1 . . . . . . . . . . . . . . Time 26 | . . . . . . . . . . 26 . . . . . . . . . . . . . . Parts Recycled . | . . . . . . . . . . . . . . . . . . . . . . . . . Recycled Matter . | . . . . . . . . . . . . . . . . . . . . . . . . . Retrieved Matter . | . . . . . . . . . . . . . . . . . . . . . . . . . Retrieved Components . | . . . . . . . . . . . . . . . . . . . . . . . . . Parts Scanalyzed 1 | . . . 1 . . . . . . . . . . . . . . . . . . . . . Part Schematics Acquired . | . . . . . . . . . . . . . . . . . . . . . . . . . Parts Damaged . | . . . . . . . . . . . . . . . . . . . . . . . . . Bothacking | -11 -10 -10 -9 -9 -9 -8 -8 -7 -7 -6 -6 -6 -6 -5 -5 -5 -5 -5 -4 -4 -4 -4 -4 -3 ------------ Run | Jun Mat Min Mat Min Exi Min Mat Fac Gar Fac Low Low Zio Pro Fac Upp Upp War Pro Fac Was Fac DSF Res Used RIF Installer . | . . . . . . . . . . . . . . . . . . . . . . . . . Robots Hacked . | . . . . . . . . . . . . . . . . . . . . . . . . . Non-combat . | . . . . . . . . . . . . . . . . . . . . . . . . . Combat . | . . . . . . . . . . . . . . . . . . . . . . . . . Robot Hacks Applied . | . . . . . . . . . . . . . . . . . . . . . . . . . Relay Couplers Released 16 | . . . . . . . . . 12 4 . . . . . . . . . . . . . . Machine Destruction 12 | . . . . . . . . . 12 . . . . . . . . . . . . . . . Programmers 4 | . . . . . . . . . . 4 . . . . . . . . . . . . . . Fabnet Peak Effective % . | . . . . . . . . . . . . . . . . . . . . . . . . . Robots Rewired . | . . . . . . . . . . . . . . . . . . . . . . . . . Allies Hacked . | . . . . . . . . . . . . . . . . . . . . . . . . . Hacks Repelled . | . . . . . . . . . . . . . . . . . . . . . . . . . Allies | -11 -10 -10 -9 -9 -9 -8 -8 -7 -7 -6 -6 -6 -6 -5 -5 -5 -5 -5 -4 -4 -4 -4 -4 -3 -------- Run | Jun Mat Min Mat Min Exi Min Mat Fac Gar Fac Low Low Zio Pro Fac Upp Upp War Pro Fac Was Fac DSF Res Total Allies 11 | . . . . . . . . 7 . . . . . . 3 . . . . 1 . . . . Largest Group 5 | . . . . . . . . 5 4 . . . . . 3 . . . . 1 . . . . Highest-Rated Group 124 | . . . . . . . . 124 114 . . . . . 93 . . . . 65 . . . . Highest-Rated Ally 65 | . . . . . . . . 31 31 . . . . . 31 . . . . 65 . . . . Warlord Squad Rendezvous 1 | . . . . . . . . . . . . . . . 1 . . . . . . . . . Pyro 1 | . . . . . . . . . . . . . . . 1 . . . . . . . . . Total Orders 1 | . . . . . . . . 1 . . . . . . . . . . . . . . . . STAY 1 | . . . . . . . . 1 . . . . . . . . . . . . . . . . Ally Attacks 68 | . . . . . . . . 21 18 . . . . . 29 . . . . . . . . . Total Damage 1101 | . . . . . . . . 449 210 . . . . . 442 . . . . . . . . . Kills 11 | . . . . . . . . 7 3 . . . . . 1 . . . . . . . . . Allies Corrupted . | . . . . . . . . . . . . . . . . . . . . . . . . . Allies Melted 1 | . . . . . . . . . . . . . . . . . . 1 . . . . . . Intel | -11 -10 -10 -9 -9 -9 -8 -8 -7 -7 -6 -6 -6 -6 -5 -5 -5 -5 -5 -4 -4 -4 -4 -4 -3 ------- Run | Jun Mat Min Mat Min Exi Min Mat Fac Gar Fac Low Low Zio Pro Fac Upp Upp War Pro Fac Was Fac DSF Res Robot Analysis Total 2 | . . . 2 . . . . . . . . . . . . . . . . . . . . . Derelict Logs Recovered 8 | . . 1 . . . . . . . . 2 . 1 . . . 3 . 1 . . . . . Drone Launches . | . . . . . . . . . . . . . . . . . . . . . . . . . Drone Recoveries . | . . . . . . . . . . . . . . . . . . . . . . . . . Exploration | -11 -10 -10 -9 -9 -9 -8 -8 -7 -7 -6 -6 -6 -6 -5 -5 -5 -5 -5 -4 -4 -4 -4 -4 -3 ------------- Run | Jun Mat Min Mat Min Exi Min Mat Fac Gar Fac Low Low Zio Pro Fac Upp Upp War Pro Fac Was Fac DSF Res Turns Passed 24442 | 67 1114 842 1228 489 458 141 2449 2305 1524 2742 595 469 1276 565 1261 1777 1231 933 1232 842 69 9 157 667 Spaces Moved 14242 | 38 580 428 561 295 284 84 989 1319 880 1359 328 252 781 343 699 993 587 488 701 982 135 18 186 932 Core 1952 | 7 . . . . . . . . . . . . . . . . . . 151 857 135 18 183 601 Treads 11251 | 31 580 428 561 295 284 84 989 1319 880 1115 328 252 781 343 699 993 587 488 212 . . . 2 . Legs . | . . . . . . . . . . . . . . . . . . . . . . . . . Wheels 746 | . . . . . . . . . . 244 . . . . . . . . 338 125 . . . 39 Hover 1 | . . . . . . . . . . . . . . . . . . . . . . . 1 . Flight 292 | . . . . . . . . . . . . . . . . . . . . . . . . 292 Fastest Speed 37 | 50 160 160 160 160 160 160 155 156 156 160 160 160 160 160 160 160 160 160 50 50 50 50 50 37 Average Speed 146 | 147 160 164 160 160 160 160 198 156 157 161 160 160 160 160 161 165 190 160 143 55 50 50 54 55 Slowest Speed 320 | 160 160 240 160 160 160 160 240 156 240 240 160 160 160 160 240 240 240 240 320 95 50 50 170 250 Overloaded Moves . | . . . . . . . . . . . . . . . . . . . . . . . . . Propulsion Burnouts . | . . . . . . . . . . . . . . . . . . . . . . . . . Robots Hopped 4 | . . . . . . . . . . . . . . . . . . . . . . . . 4 Cave-ins Triggered . | . . . . . . . . . . . . . . . . . . . . . . . . . Exploration Rate (%) 52 | 4 93 86 53 59 68 20 81 31 56 32 50 38 86 60 16 65 74 66 67 27 73 1 81 34 Regions Visited 24 Branch Regions 12 Pre-discovered Areas 7 | . . 1 . 1 1 . . . . . 1 . 1 . . . 1 . 1 . . . . . Known Exits Taken 5 | . . . 1 . . . . 1 . . . . . . 1 . 1 . . . . 1 . . Unknown Exits Taken 15 | 1 1 1 . 1 1 1 1 . . 1 1 1 1 1 . 1 . 1 1 . . . . . Scrap Searched 16 | . . 1 . . . . . . . . 1 2 5 1 . 2 2 . 2 . . . . . Spaces Dug 105 | . . . . . . . . 10 1 9 . . . . . 19 6 2 9 20 . . . 29 Terrain Destroyed 799 | . 68 57 . . . . 42 22 60 33 10 61 . 23 53 40 68 42 135 20 . . . 65 Melee 90 | . . . . . . . . 4 . 9 . . . . . 19 6 2 9 20 . . . 21 Projectile 49 | . . . . . . . . 6 2 2 1 4 . . . 1 6 . 25 . . . . 2 AOE 652 | . 68 57 . . . . 42 12 58 20 7 57 . 23 51 18 56 40 101 . . . . 42 Terrain Rammed . | . . . . . . . . . . . . . . . . . . . . . . . . . Walls Destroyed . | . . . . . . . . . . . . . . . . . . . . . . . . . Machines Disabled . | . . . . . . . . . . . . . . . . . . . . . . . . . Actions | -11 -10 -10 -9 -9 -9 -8 -8 -7 -7 -6 -6 -6 -6 -5 -5 -5 -5 -5 -4 -4 -4 -4 -4 -3 --------- Run | Jun Mat Min Mat Min Exi Min Mat Fac Gar Fac Low Low Zio Pro Fac Upp Upp War Pro Fac Was Fac DSF Res Total 16598 | 46 688 504 770 306 289 87 1387 1487 943 1767 358 282 812 355 794 1053 640 591 815 1226 135 17 237 1009 Wait 1043 | . 31 14 72 9 1 1 264 100 10 246 1 . 1 7 36 . 1 44 18 167 1 . 15 4 Move 14211 | 37 579 427 560 294 283 83 988 1319 877 1358 327 251 780 342 698 992 586 487 700 982 134 17 185 925 Hop 3 | . . . . . . . . . . . . . . . . . . . . . . . . 3 Pick Up 155 | 3 17 7 14 . 1 1 19 5 3 22 2 2 9 . 6 3 8 11 7 4 . . 8 3 Fast Attach 102 | 6 2 1 8 . . . 10 5 1 9 1 1 4 . 3 2 . 1 9 16 . . 8 15 Attach 96 | . 2 7 2 . . . 7 2 3 12 1 3 . . 5 3 8 5 14 6 . . 2 14 Detach 34 | . 1 . . . . . 1 . . 2 . 1 . . 1 3 . 1 4 10 . . 1 9 Swap 128 | . 7 6 10 . 1 . 17 7 11 25 4 1 4 1 11 8 5 8 2 . . . . . Drop 173 | . 8 4 25 . 3 . 30 10 1 24 3 . 14 1 11 4 2 6 8 8 . . 9 2 Fire 513 | . 41 38 79 3 . 2 51 34 33 59 13 21 . 4 22 19 23 25 42 . . . . 4 Melee 126 | . . . . . . . . 4 3 10 6 2 . . . 19 6 2 11 33 . . 2 28 Ram 2 | . . . . . . . . . . . . . . . . . . . . . . . . 2 Kick . | . . . . . . . . . . . . . . . . . . . . . . . . . Crush 1 | . . . . . . . . 1 . . . . . . . . . . . . . . . . Escape Stasis 1 | . . . . . . . . . 1 . . . . . . . . . . . . . . . Rewire 2 | . . . . . . . . . . . . . . . 1 . . 1 . . . . . . Trap 8 | . . . . . . . . . . . . . . . . . 1 . . . . . 7 . Miscellaneous . | . . . . . . . . . . . . . . . . . . . . . . . . . Route ------- -11/Junkyard -10/Materials (discovered 5 exits: *Mat x3 / [*Min x2]) -10/Mines -9/Materials (discovered 2 exits: *Mat / *Min) -9/Mines (discovered 3 exits: *Mat x2 / *Exi) -9/Exiles (discovered 2 exits: [*Min x2]) -8/Mines -8/Materials (discovered 2 exits: *Fac / *Sto) -7/Factory (discovered 3 exits: *Low x2 / Gar) -7/Garrison (discovered 3 exits: *Fac x3) -6/Factory -6/Lower Caves -6/Lower Caves -6/Zion -5/Proximity Caves -5/Factory -5/Upper Caves -5/Upper Caves -5/Warlord -4/Proximity Caves -4/Factory -4/Waste -4/Factory (discovered 2 exits: *Res / DSF) -4/DSF -3/Research History --------- Turn | Location | Event 16 | -11/Junkyard | Discovered new exit (range 16) 68 | -11/Junkyard | Entered Materials 331 | -10/Materials | Build established: Mutant 491 | -10/Materials | Discovered new exit (range 16) 635 | -10/Materials | Discovered new exit (range 4) 711 | -10/Materials | Discovered new exit (range 10) 839 | -10/Materials | Discovered new exit (range 13) 839 | -10/Materials | Discovered new exit (range 5) 1182 | -10/Materials | Entered Mines 1263 | -10/Mines | Assembled infested the area 1268 | -10/Mines | Assisted by a Guerilla fighting off Assembled 1364 | -10/Mines | Core integrity fell below 50% 1375 | -10/Mines | Discovered new exit (range 10) 1388 | -10/Mines | Lost 3 parts (1p2w) 1859 | -10/Mines | Learned location of Zion (-6) 1867 | -10/Mines | Core integrity fell below 20% 2024 | -10/Mines | Entered Materials 2024 | -9/Materials | Evolved 2 slots: Propulsion x1, Utility x1 2164 | -9/Materials | Identified exit to Mines 2818 | -9/Materials | Discovered new exit (range 9) 3252 | -9/Materials | Entered Mines 3279 | -9/Mines | Build established: Scavenger-Mutant 3357 | -9/Mines | Discovered new exit (range 9) 3439 | -9/Mines | Discovered new exit (range 10) 3651 | -9/Mines | Learned location of Storage (-8) 3734 | -9/Mines | Deemed a non-threat by the Exiles lab entrance 3734 | -9/Mines | Discovered new exit (range 5) 3741 | -9/Mines | Entered Exiles 3773 | -9/Exiles | Discovered new exit (range 15) 3794 | -9/Exiles | Met 8R-AWN 3820 | -9/Exiles | Met EX-HEX 3884 | -9/Exiles | Met EX-DEC 3919 | -9/Exiles | Met EX-BIN 3951 | -9/Exiles | Aligned with FarCom system 3953 | -9/Exiles | Given EX-Vault access code 3991 | -9/Exiles | Opened EX-Vault 4007 | -9/Exiles | Found YOLO Cannon 4043 | -9/Exiles | Warned to stay clear of 0b10 Research branches 4058 | -9/Exiles | Exiles lab attacked by MAIN.C 4179 | -9/Exiles | Discovered new exit (range 14) 4199 | -9/Exiles | Left Exiles lab with YOLO Cannon 4199 | -9/Exiles | Entered Mines 4324 | -8/Mines | Discovered new exit (range 12) 4340 | -8/Mines | Entered Materials 4340 | -8/Materials | Evolved 2 slots: Utility x1, Weapon x1 4582 | -8/Materials | Discovered new exit (range 9) 4674 | -8/Materials | Build established: Scavenger-Tank 5777 | -8/Materials | Build established: Scavenger-Skirmisher 5836 | -8/Materials | Identified exit to Storage 6259 | -8/Materials | Discovered new exit (range 3) 6768 | -8/Materials | Build established: Skirmisher 6789 | -8/Materials | Entered Factory 6789 | -7/Factory | Evolved 2 slots: Propulsion x1, Utility x1 7020 | -7/Factory | Fabricated T-07 Excavator? 7409 | -7/Factory | Fabricated H-55 Commando? 7853 | -7/Factory | Identified exit to Lower Caves 8910 | -7/Factory | Allied Derelicts emerged from ambush trap array 9088 | -7/Factory | Identified exit to Garrison 9094 | -7/Factory | Entered Garrison 9094 | -7/Garrison | Accompanied by 4 allies 9244 | -7/Garrison | Triggered checkpoint 9323 | -7/Garrison | Destroyed 8 combat bots 9370 | -7/Garrison | Garrison Relay disabled 9632 | -7/Garrison | Triggered checkpoint 9645 | -7/Garrison | Discovered new exit (range 14) 9717 | -7/Garrison | Garrison Relay disabled 9836 | -7/Garrison | Triggered checkpoint 9860 | -7/Garrison | Garrison Relay disabled 10076 | -7/Garrison | Discovered new exit (range 12) 10194 | -7/Garrison | Triggered checkpoint 10261 | -7/Garrison | Discovered new exit (range 10) 10330 | -7/Garrison | Attempted to access garrison exit controls, blocked by remote lockdown 10367 | -7/Garrison | Build established: Tank 10453 | -7/Garrison | Attempted to access garrison exit controls, blocked by remote lockdown 10618 | -7/Garrison | Entered Factory 10618 | -6/Factory | Evolved 2 slots: Power x1, Utility x1 11231 | -6/Factory | Build established: Scavenger-Tank 11318 | -6/Factory | First assault squad dispatched 11566 | -6/Factory | Build established: Scavenger-Skirmisher 11823 | -6/Factory | Repaired Lgt. Treads 11992 | -6/Factory | Lost 6 parts (1p3n2w) 12787 | -6/Factory | Discovered new exit (range 20) 13221 | -6/Factory | Spotted B-75 Beast 13360 | -6/Factory | Entered Lower Caves 13434 | -6/Lower Caves | Met a Warlord Commander 13435 | -6/Lower Caves | Learned location of Warlord (-5) 13442 | -6/Lower Caves | Found Encrypted Comm Array 13520 | -6/Lower Caves | Spotted B-75 Beast 13559 | -6/Lower Caves | Learned Factory emergency access door positions 13624 | -6/Lower Caves | Learned 4 Factory zone layouts 13625 | -6/Lower Caves | Encountered a Warlord checkpoint 13709 | -6/Lower Caves | Build established: Mutant 13898 | -6/Lower Caves | Discovered new exit (range 20) 13901 | -6/Lower Caves | Attracted the attention of an 0b10 checkpoint 13955 | -6/Lower Caves | Entered another Lower Caves area 14368 | -6/Lower Caves | Discovered new exit (range 3) 14424 | -6/Lower Caves | Entered Zion 14477 | -6/Zion | Discovered new exit (range 14) 14601 | -6/Zion | Found GAL Module 14933 | -6/Zion | Given the Hacking Drone Bay 14937 | -6/Zion | Found Prototype Device 14937 | -6/Zion | Identified Hacking Drone Bay 15063 | -6/Zion | Rebuked by Imprinter 15187 | -6/Zion | Found Prototype Special Weapon 15187 | -6/Zion | Identified RU-N14's Throwing Claymores 15191 | -6/Zion | Found RU-N14's Throwing Claymores 15194 | -6/Zion | Found RU-N14's Throwing Claymores 15197 | -6/Zion | Found RU-N14's Throwing Claymores 15433 | -6/Zion | Received a visual enhancement algorithm 15700 | -6/Zion | Entered Proximity Caves 15814 | -5/Proximity Caves | Build established: Tank 15903 | -5/Proximity Caves | Spotted B-75 Beast 16119 | -5/Proximity Caves | Attracted the attention of an 0b10 checkpoint 16171 | -5/Proximity Caves | Destroyed B-75 Beast 16233 | -5/Proximity Caves | Discovered new exit (range 10) 16265 | -5/Proximity Caves | Entered Factory 16265 | -5/Factory | Evolved 2 slots: Utility x2 16266 | -5/Factory | Identified exit to Upper Caves 16299 | -5/Factory | Identified exit to DSF 16386 | -5/Factory | Allied Derelicts emerged from ambush trap array 16450 | -5/Factory | Joined by Warlord Pyro squad 17252 | -5/Factory | Build established: Gunner 17347 | -5/Factory | Cargo convoy interrupted 17397 | -5/Factory | Destroyed 10 combat bots 17526 | -5/Factory | Entered Upper Caves 17528 | -5/Upper Caves | Attracted the attention of an 0b10 checkpoint 18457 | -5/Upper Caves | Attracted the attention of an 0b10 outpost 18930 | -5/Upper Caves | Build established: Mutant 19261 | -5/Upper Caves | Discovered new exit (range 4) 19303 | -5/Upper Caves | Entered another Upper Caves area 19381 | -5/Upper Caves | Identified exit to Warlord 19650 | -5/Upper Caves | Build established: Scavenger-Gunner 19799 | -5/Upper Caves | Learned Factory terminal intel 20127 | -5/Upper Caves | Spotted B-75 Beast 20151 | -5/Upper Caves | Destroyed B-75 Beast 20180 | -5/Upper Caves | Lost 3 parts (2u1w) 20303 | -5/Upper Caves | Attracted the attention of an 0b10 checkpoint 20534 | -5/Upper Caves | Entered Warlord 20606 | -5/Warlord | Discovered new exit (range 15) 20876 | -5/Warlord | Met Warlord 20901 | -5/Warlord | Warlord's base attacked by MAIN.C 20980 | -5/Warlord | Build established: Scavenger-Mutant 21224 | -5/Warlord | Spotted Striker 21224 | -5/Warlord | Spotted Striker 21244 | -5/Warlord | Spotted B-86 Titan 21251 | -5/Warlord | Warlord forces counterattacked 21265 | -5/Warlord | Destroyed 8 combat bots 21282 | -5/Warlord | Spotted Striker 21295 | -5/Warlord | Lost 4 parts (2n2u) 21323 | -5/Warlord | Spotted Striker 21359 | -5/Warlord | Spotted Executioner 21396 | -5/Warlord | Spotted Executioner 21420 | -5/Warlord | Spotted Striker 21420 | -5/Warlord | Spotted B-86 Titan 21467 | -5/Warlord | Entered Proximity Caves 21525 | -4/Proximity Caves | Build established: Scavenger-Gunner 21535 | -4/Proximity Caves | Learned location of Testing (-2) 21541 | -4/Proximity Caves | Attracted the attention of an 0b10 outpost 21599 | -4/Proximity Caves | Lost 3 parts (1n1u1w) 21698 | -4/Proximity Caves | Lost 8 parts (5n2u1w) 21742 | -4/Proximity Caves | Lost 5 parts (1n2u2w) 21907 | -4/Proximity Caves | Spotted B-86 Titan 22090 | -4/Proximity Caves | Build established: Scavenger-Mutant 22250 | -4/Proximity Caves | Lost 3 parts (2n1u) 22499 | -4/Proximity Caves | Build established: Mutant 22580 | -4/Proximity Caves | Core integrity fell below 50% 22598 | -4/Proximity Caves | Destroyed B-86 Titan 22616 | -4/Proximity Caves | Lost 3 parts (1p2n) 22687 | -4/Proximity Caves | Discovered new exit (range 10) 22699 | -4/Proximity Caves | Entered Factory 22699 | -4/Factory | Evolved 2 slots: Propulsion x2 22700 | -4/Factory | Loaded intel: 27 terminal locations 22924 | -4/Factory | Fabricated I-47 Archangel? 23018 | -4/Factory | Fabricated Adv. Heavy Siege Treads? 23087 | -4/Factory | Build established: Scavenger-Scout 23504 | -4/Factory | Build established: Hacker-Mutant 23538 | -4/Factory | Spotted B-86 Titan 23541 | -4/Factory | Sucked down chute 23541 | -4/Factory | Entered Waste 23550 | -4/Waste | Spotted C-40 Crusher 23550 | -4/Waste | Spotted C-40 Crusher 23551 | -4/Waste | Spotted C-40 Crusher 23578 | -4/Waste | Spotted C-40 Crusher 23579 | -4/Waste | Spotted C-40 Crusher 23590 | -4/Waste | Spotted C-40 Crusher 23598 | -4/Waste | Discovered new exit (range 22) 23610 | -4/Waste | Entered Factory 23615 | -4/Factory | Identified exit to DSF 23617 | -4/Factory | Discovered new exit (range 15) 23619 | -4/Factory | Entered DSF 23625 | -4/DSF | Discovered new exit (range 20) 23642 | -4/DSF | Additional patrols routed to DSF 23776 | -4/DSF | Entered Research 23776 | -3/Research | Evolved 2 slots: Utility x1, Weapon x1 23827 | -3/Research | Build established: Mutant 24003 | -3/Research | Spotted B-86 Titan 24230 | -3/Research | Core integrity fell below 50% 24248 | -3/Research | Lost 8 parts (6n2u) 24343 | -3/Research | Spotted B-86 Titan 24388 | -3/Research | Core integrity fell below 20% 24439 | -3/Research | Lost 7 parts (1p2n2u2w) 24443 | -3/Research | Destroyed by P-80 Master with Gamma Rifle Last Messages --------------- 24386_ RU-N14's Throwing Claymores expended. 24387_ Slug penetrates Wall. 24389_ Mic. Antimatter Reactor destroyed. 24390_ The unstable cave ceiling collapses. 24390_ Y-72 Warden suffers critical hit (Meltdown). 24390_ Slug penetrates Earth. 24392_ The unstable cave ceiling collapses. 24393_ Penetrated by Slug. 24394_ B-86 Titan exits siege mode. 24394_ Acquired Arm. Medium Treads. 24395_ The unstable cave ceiling collapses. 24397_ Slug penetrates Wall. 24397_ Acquired Mic. Antimatter Reactor. 24398_ Slug penetrates Wall. 24403_ B-86 Titan activates siege mode. 24404_ Knocked back. 24408_ Slug penetrates Wall. 24408_ Penetrated by Slug. 24408_ Adv. Signal Interpreter destroyed. 24443_ System corrupted: Energy discharge (-43). Map ----- +----------------------------------------------------+ | | | | | | | | | | | ?????????????????????????????????????????????????? | | ?????????????????????????????????????????????????? | | ?????????????????????????????????????????????????? | | ?????????????????????????????????????????????????? | | ?????????????????????????????????????????????????? | | ?????????????????????????????????????????????????? | | ?????????????????????????????????????????????????? | | ?????????????????????????????????????????????????? | | ?????????????????????????????????????????????????? | | ??????##########????????Y????????????????????????? | | ####### #?????????????????????????????????? | | | # = #?????????????????????????????????? | | # #?????????????????????????????????? | | # #????????ss???????????????????????? | | # "" #??????????s??????????????????????? | | # """#?????????????????????????????????? | | # S"##########+#######????????????????? | | # ! + #????????????????? | | !# # #####+#####????????????? | | #+######+####### p # #????????????? | | @#] #??w?????????? | | # #????????????? | | # #????????????? | | """ ###########????????????? | | # ########## """ # #?????????????? | | # #????????# """ # ! #?????????????? | | # #????????# # #?????????????? | | #????????# # #?????????????? | | #????????+ # #?????????????? | | +????????# k + #?????????????? | | #????????# k ##### #?????????????? | | #????????# #???# ! #?????????????? | | #????????# #???? #?????????????? | | +????????# #######+# ##########+###### | | ######????????# | | ??????????????# | | ??????????????# | | ??????????????# | | ??????????????# ######### ### ###+#####? | | ??????????????# #?????? ## # ## | | ??????????????# #????# ## # ## | | ??????????????# #????# ## # ## | | ???????#+#????# #????# ## # / | | ######## #????# #????# ## / ## | | # #????# #????# ## # ## | +----------------------------------------------------+ Best States ------------- Heat Dissipation 94 Energy Generation 35 Energy Capacity 590 Matter Stores 500 Matter Capacity 500 Sight Range 22 Terrain Scan Density 210 ECM Strength 2 Jamming Range 16 Corruption Block 13 Armor Coverage 825 Resistance: EM 25 Propulsion Shielding 33 Utility Shielding 33 Evasion (%) 62 Targeting Accuracy 24 Melee Accuracy 16 Target Analysis 8 Recoil Reduction 4 Offensive Hacking 14 Defensive Hacking 12 Item Schematics ----------------- Slug Cannon | -6/Zion | Free HERF Cannon | -4/Factory | Hacked Robot Schematics ------------------ None Fabricated ------------ T-07 Excavator | x1 | -7/Factory | Preloaded H-55 Commando | x2 | -7/Factory | Preloaded I-47 Archangel | x1 | -4/Factory | Preloaded Adv. Heavy Siege Treads | x2 | -4/Factory | Preloaded Alien Tech Used ----------------- None Achievements -------------- None Challenges ------------ None Game ------ Seed DisruptionComponentStorage Manual? 0 Play Time 03:33:20 Cumulative 337.9 hours Start 2023.03.09 @ 21:38:01 End 2023.03.11 @ 15:49:10 Sessions 9 Manual Loads 0 Difficulty Rogue Special Mode None Game No. 418 Rogue 418 Adventurer 0 Explorer 0 Win Type - Total 35 Types 25/0/7/3/0/0/0/0/0 Lore% 84 Gallery% 80 Achievement% 58 Wizard Run 0 Options --------- ASCII 0 Keyboard 1 Movement Numpad Keybinds 0 Fullscreen 1 Font 24/Smallcaps Map View 76x50 Tactical HUD 1 Map Filters NONE Filters NONE Steam 1 RUN: 9befd4dd-7e07-4951-8552-eba9c18835c5